bitfinex/quotes_BTCUSD_20240611
["timestamp","ask_amount","ask_price","bid_price","bid_amount"]
[1718105800276,0.43642527,66810.0,66809.0,0.001]
[1718105800450,0.30674538,66810.0,66809.0,0.001]
[1718105801440,0.30774538,66810.0,66809.0,0.001]
[1718105801641,0.30644944,66810.0,66809.0,0.001]
[1718105802040,0.31044944,66810.0,66809.0,0.001]
[1718105802447,0.31344944,66810.0,66809.0,0.001]
[1718105802650,0.31344944,66810.0,66809.0,0.00186]
[1718105805170,0.16377144,66810.0,66809.0,0.00186]
[1718105806595,0.16077144,66810.0,66809.0,0.00186]
[1718105807033,0.16077144,66810.0,66809.0,0.00286]
[1718105808812,0.15677144,66810.0,66809.0,0.00286]
[1718105809028,0.38184944,66810.0,66809.0,0.00286]
[1718105809211,0.63704944,66810.0,66809.0,0.00286]
[1718105809886,0.81416827,66810.0,66809.0,0.00286]
[1718105810226,0.90818621,66810.0,66809.0,0.00286]
[1718105810442,0.90818621,66810.0,66809.0,0.00186]
[1718105810657,0.92895394,66810.0,66809.0,0.00186]
[1718105811262,0.94895394,66810.0,66809.0,0.00186]
[1718105811466,1.03766406,66810.0,66809.0,0.00186]
[1718105811636,0.94865798,66810.0,66809.0,0.00186]
[1718105811857,1.0373681,66810.0,66809.0,0.00186]
[1718105812055,1.0173681,66810.0,66809.0,0.00186]
[1718105812451,0.92965798,66810.0,66809.0,0.00186]
[1718105812679,0.92965798,66810.0,66807.0,0.00856]
[1718105812680,0.369682,66808.0,66807.0,0.00542]
[1718105812883,1.14827143,66808.0,66807.0,0.00542]
[1718105813055,1.27013622,66808.0,66807.0,0.00542]
[1718105813708,1.15901393,66808.0,66807.0,0.00542]
[1718105814284,1.22565263,66808.0,66807.0,0.00542]
[1718105814698,1.28451094,66808.0,66807.0,0.00542]
[1718105814913,1.21787224,66808.0,66807.0,0.00542]
[1718105815248,1.13463087,66808.0,66807.0,0.00542]
[1718105815478,1.22086573,66808.0,66807.0,0.00542]
[1718105815685,1.22286573,66808.0,66807.0,0.00542]
[1718105817161,1.02286573,66808.0,66807.0,0.00542]
[1718105817396,1.20286573,66808.0,66807.0,0.00542]
[1718105817858,1.13623085,66808.0,66807.0,0.00542]
[1718105818082,1.20288091,66808.0,66807.0,0.00542]
[1718105818427,1.18163333,66808.0,66807.0,0.00542]
[1718105818632,1.11498327,66808.0,66807.0,0.00542]
[1718105818865,0.35670141,66808.0,66807.0,0.16842]
[1718105819087,0.33593368,66808.0,66807.0,0.16842]
[1718105819303,0.16006243,66808.0,66807.0,0.16842]
[1718105819520,0.30974443,66808.0,66807.0,0.16842]
[1718105820394,0.4909397,66808.0,66807.0,0.00542]
[1718105820633,0.51122975,66808.0,66807.0,0.00542]
[1718105821459,0.59589967,66808.0,66807.0,0.00542]
[1718105821700,0.51093379,66808.0,66807.0,0.00542]
[1718105821908,0.59594688,66808.0,66807.0,0.00542]
[1718105822394,1.03871363,66808.0,66807.0,0.00542]
[1718105823216,0.94984688,66808.0,66807.0,0.00542]
[1718105823422,0.97284688,66808.0,66807.0,0.00542]
[1718105823828,1.05004688,66808.0,66807.0,0.00542]
[1718105824068,1.07004688,66808.0,66807.0,0.00542]
[1718105824245,1.05004688,66808.0,66807.0,0.00542]
[1718105824655,1.06969264,66808.0,66807.0,0.00542]
[1718105825690,0.9650496,66808.0,66807.0,0.00542]
[1718105825937,1.04933175,66808.0,66807.0,0.00542]
[1718105826565,1.04930279,66808.0,66807.0,0.00542]
[1718105828284,1.44866779,66808.0,66807.0,0.00542]
[1718105828499,0.569074,66804.0,66803.0,0.00856]
[1718105828719,0.85070095,66804.0,66803.0,0.00856]
[1718105828941,0.96990061,66804.0,66803.0,0.00856]
[1718105829197,0.75770061,66804.0,66803.0,0.00856]
[1718105829371,0.89698789,66804.0,66803.0,0.00856]
[1718105829589,1.19637089,66804.0,66803.0,0.00856]
[1718105829799,1.12108874,66804.0,66803.0,0.00856]
[1718105830007,1.13108874,66804.0,66803.0,0.00856]
[1718105830220,1.03108874,66804.0,66803.0,0.00856]
[1718105830437,1.03108874,66804.0,66803.0,0.08826]
[1718105830438,0.21649481,66804.0,66803.0,0.08826]
[1718105830644,0.03572901,66804.0,66803.0,0.25836]
[1718105830865,0.01902264,66804.0,66803.0,0.25836]
[1718105831281,0.014,66804.0,66803.0,0.23836]
[1718105832197,0.004,66804.0,66803.0,0.23836]
[1718105832641,0.2122,66813.0,66803.0,0.23836]
[1718105832858,0.149677,66811.0,66803.0,0.23836]
[1718105833087,0.009,66804.0,66803.0,0.23836]
[1718105833528,0.14431993,66810.0,66803.0,0.23836]
[1718105834439,0.2122,66812.0,66803.0,0.23836]
[1718105834440,0.2122,66812.0,66809.0,0.07215996]
[1718105834666,0.00502264,66813.0,66810.0,0.238]
[1718105834900,0.00502264,66813.0,66810.0,0.078]
[1718105835142,0.01051626,66812.0,66811.0,0.16]
[1718105835359,0.01051626,66812.0,66811.0,0.238]
[1718105835591,0.00502264,66813.0,66811.0,0.238]
[1718105837480,0.15469964,66811.0,66803.0,0.00856]
[1718105837698,0.2122,66807.0,66803.0,0.00856]
[1718105837924,0.00502264,66806.0,66803.0,0.00856]
[1718105838342,0.14431993,66805.0,66803.0,0.00856]
[1718105839668,0.14431993,66805.0,66803.0,0.00956]
[1718105839872,0.149691,66804.0,66803.0,0.00956]
[1718105840098,0.29401093,66804.0,66803.0,0.00856]
[1718105840639,0.29401093,66804.0,66803.0,0.00956]
[1718105841264,0.50709485,66804.0,66803.0,0.00956]
[1718105841463,0.50659485,66804.0,66803.0,0.00956]
[1718105841630,0.50629889,66804.0,66803.0,0.00956]
[1718105841850,0.50629889,66804.0,66803.0,0.00856]
[1718105842277,0.50629889,66804.0,66803.0,0.00956]
[1718105843132,0.50629889,66804.0,66803.0,0.00856]
[1718105843331,0.50629889,66804.0,66803.0,0.00956]
[1718105843537,0.50629889,66804.0,66803.0,0.01056]
[1718105843754,0.50629889,66804.0,66803.0,0.00956]
[1718105844207,0.50629889,66804.0,66803.0,0.01056]
[1718105844412,0.29309889,66804.0,66803.0,0.01056]
[1718105844637,0.14431993,66804.0,66803.0,0.01056]
[1718105845505,0.04444841,66808.0,66804.0,0.2341]
[1718105845916,0.04444841,66808.0,66804.0,0.0773]
[1718105846126,0.04444841,66808.0,66805.0,0.1568]
[1718105846580,0.000946,66814.0,66805.0,0.1568]
[1718105846786,0.14526593,66814.0,66805.0,0.1568]
[1718105847023,0.14526593,66814.0,66807.0,0.1643]
[1718105847416,0.01065217,66813.0,66807.0,0.1643]
[1718105849774,0.01065217,66813.0,66807.0,0.1653]
[1718105850298,0.00749856,66813.0,66807.0,0.1653]
[1718105851135,0.00749856,66813.0,66809.0,0.07215996]
[1718105851345,0.000946,66814.0,66810.0,0.2291]
[1718105851549,0.00750226,66812.0,66810.0,0.2291]
[1718105851766,0.000946,66814.0,66810.0,0.2291]
[1718105852174,0.00750226,66813.0,66810.0,0.2291]
[1718105852583,0.000946,66814.0,66810.0,0.2291]
[1718105852961,0.00750226,66813.0,66810.0,0.2291]
[1718105853378,0.000946,66814.0,66813.0,0.2343]
[1718105853584,0.000946,66814.0,66813.0,0.23459539]
[1718105854373,0.000946,66814.0,66813.0,0.38426639]
[1718105854613,0.000946,66814.0,66813.0,0.38526639]
[1718105856009,0.000946,66814.0,66813.0,0.38426639]
[1718105856244,0.000946,66814.0,66813.0,0.38526639]
[1718105856449,0.000946,66814.0,66813.0,0.39958668]
[1718105856668,0.000946,66814.0,66813.0,0.49958668]
[1718105857246,0.000946,66814.0,66813.0,0.49858668]
[1718105857681,0.000946,66814.0,66813.0,0.49958668]
[1718105858826,0.000946,66814.0,66813.0,0.48526639]
[1718105859499,0.000946,66814.0,66813.0,0.484971]
[1718105859709,0.000946,66814.0,66813.0,0.50299886]
[1718105862211,0.000946,66814.0,66813.0,0.50199886]
[1718105862581,0.000946,66814.0,66813.0,0.50299886]
[1718105866304,0.000946,66814.0,66813.0,0.64731879]
[1718105866654,0.000946,66814.0,66813.0,0.94666079]
[1718105867252,0.4407,66844.0,66813.0,0.94666079]
[1718105867253,0.0763,66844.0,66821.0,0.380753]
[1718105867460,0.0763,66844.0,66821.0,0.63939322]
[1718105867671,0.05985,66841.0,66821.0,0.63939322]
[1718105867877,0.0763,66844.0,66821.0,0.63939322]
[1718105868310,0.060795,66842.0,66821.0,0.93870022]
[1718105868510,0.000946,66842.0,66821.0,0.93870022]
[1718105868934,0.000946,66842.0,66821.0,1.23900722]
[1718105869369,0.000946,66842.0,66821.0,1.26100722]
[1718105869571,0.000946,66842.0,66827.0,0.149639]
[1718105869932,0.000946,66842.0,66835.0,0.2358]
[1718105869933,0.00797399,66841.0,66835.0,0.2358]
[1718105870109,0.00797399,66841.0,66840.0,0.149609]
[1718105870307,0.00797399,66841.0,66830.0,0.0804]
[1718105870668,0.00797399,66841.0,66833.0,0.149626]
[1718105870893,0.00797399,66841.0,66834.0,0.1]
[1718105873854,0.00797399,66841.0,66830.0,0.1]
[1718105874067,0.2132,66839.0,66827.0,0.1566]
[1718105874282,0.2132,66839.0,66826.0,0.149641]
[1718105874283,0.2132,66834.0,66826.0,0.149641]
[1718105874493,0.21290461,66834.0,66826.0,0.149641]
[1718105874940,0.00812099,66833.0,66826.0,0.149641]
[1718105876147,0.00812099,66833.0,66829.0,0.10456427]
[1718105877286,0.35751993,66839.0,66829.0,0.10456427]
[1718105877731,0.00812099,66838.0,66829.0,0.10456427]
[1718105877953,0.2477,66837.0,66829.0,0.10456427]
[1718105878548,0.00812099,66836.0,66829.0,0.10456427]
[1718105879737,0.00812099,66836.0,66829.0,0.10556427]
[1718105880168,0.00812099,66836.0,66829.0,0.10456427]
[1718105880378,0.00812099,66836.0,66829.0,0.10556427]
[1718105880584,0.14431993,66839.0,66829.0,0.10536427]
[1718105880819,0.00812099,66835.0,66829.0,0.10536427]
[1718105881000,0.14431993,66839.0,66829.0,0.10536427]
[1718105881292,0.00812099,66834.0,66829.0,0.10536427]
[1718105881546,0.000946,66842.0,66838.0,0.07215996]
[1718105881955,0.00812099,66841.0,66838.0,0.07215996]
[1718105882374,0.000946,66842.0,66838.0,0.07215996]
[1718105883088,0.00804687,66841.0,66838.0,0.07215996]
[1718105884312,0.00804687,66841.0,66838.0,0.07315996]
[1718105884932,0.00804687,66841.0,66838.0,0.07215996]
[1718105885348,0.00804687,66841.0,66838.0,0.07315996]
[1718105885560,0.00804687,66841.0,66840.0,0.149611]
[1718105885768,0.000946,66842.0,66841.0,0.149608]
[1718105886727,0.000946,66842.0,66841.0,0.45782793]
[1718105886941,0.000946,66842.0,66841.0,0.53502793]
[1718105887184,0.000946,66842.0,66841.0,0.93424493]
[1718105888125,0.000946,66842.0,66841.0,0.93524493]
[1718105888539,0.000946,66842.0,66841.0,0.93424493]
[1718105889061,0.000946,66842.0,66841.0,0.95209421]
[1718105889336,0.000946,66842.0,66841.0,1.25131121]
[1718105889852,0.43295979,66863.0,66841.0,1.25131121]
[1718105889853,0.43295979,66863.0,66862.0,0.308961]
[1718105890350,0.00682348,66863.0,66862.0,0.308961]
[1718105890772,0.08460501,66880.0,66865.0,0.149553]
[1718105890997,0.08460501,66880.0,66866.0,0.149551]
[1718105891918,0.009405,66874.0,66868.0,0.07215996]
[1718105892154,0.08460501,66880.0,66868.0,0.07215996]
[1718105892155,0.00940501,66880.0,66868.0,0.60542789]
[1718105892369,0.00940501,66880.0,66868.0,0.70542789]
[1718105894281,0.00940501,66880.0,66868.0,0.72337617]
[1718105894906,0.00940501,66880.0,66874.0,0.149534]
[1718105895114,0.00940501,66880.0,66872.0,0.01432029]
[1718105896233,0.00940501,66880.0,66872.0,0.16385829]
[1718105897107,0.00940501,66880.0,66874.0,0.149534]
[1718105903109,0.24650501,66880.0,66874.0,0.149534]
[1718105903552,0.01692517,66875.0,66874.0,0.149534]
[1718105906689,0.00940501,66875.0,66874.0,0.149534]
[1718105911371,0.00940501,66875.0,66874.0,0.310634]
[1718105911590,0.00940501,66875.0,66874.0,0.45495393]
[1718105911832,0.00940501,66875.0,66874.0,0.63485393]
[1718105912048,0.00940501,66875.0,66874.0,0.93392293]
[1718105916728,0.00940501,66875.0,66874.0,1.09512763]
[1718105917175,0.00940501,66875.0,66874.0,1.17268003]
[1718105918009,0.00940501,66875.0,66874.0,0.87361103]
[1718105918650,0.00940501,66875.0,66874.0,0.79606475]
[1718105923113,0.00940501,66875.0,66874.0,1.09513375]
[1718105925135,0.00543811,66880.0,66879.0,0.149523]
[1718105925334,0.00543811,66880.0,66879.0,0.54895375]
[1718105925536,0.00543811,66880.0,66879.0,0.40463382]
[1718105926332,0.01317701,66880.0,66879.0,0.40463382]
[1718105926534,0.01317701,66880.0,66879.0,0.15511934]
[1718105926977,0.55934058,66880.0,66879.0,0.15511934]
[1718105927222,0.55934058,66880.0,66872.0,1.0]
[1718105927223,0.149537,66873.0,66872.0,1.0]
[1718105927423,0.90659322,66873.0,66872.0,1.0]
[1718105927648,0.91938656,66873.0,66872.0,1.0]
[1718105927857,0.95149608,66873.0,66872.0,0.9997]
[1718105928243,0.91938656,66873.0,66872.0,0.9997]
[1718105931516,0.70618656,66873.0,66872.0,0.9997]
[1718105931722,0.76715027,66873.0,66872.0,0.9997]
[1718105931918,0.89869083,66873.0,66872.0,0.9997]
[1718105932353,0.74915383,66873.0,66872.0,0.9997]
[1718105934154,0.89869083,66873.0,66872.0,0.9997]
[1718105934931,0.90015127,66873.0,66872.0,0.9997]
[1718105936491,0.90515127,66873.0,66872.0,0.9997]
[1718105938779,0.96497727,66873.0,66872.0,0.9997]
[1718105940711,1.11034711,66873.0,66872.0,0.9997]
[1718105940897,1.08700261,66873.0,66872.0,0.9997]
[1718105941272,1.15374352,66873.0,66872.0,0.9997]
[1718105942250,1.15399304,66873.0,66872.0,0.9997]
[1718105942469,1.08726667,66873.0,66872.0,0.9997]
[1718105943612,1.13173385,66873.0,66872.0,0.9997]
[1718105943826,1.43080785,66873.0,66872.0,0.9997]
[1718105944045,1.40934067,66873.0,66872.0,0.9997]
[1718105944735,1.45380034,66873.0,66872.0,0.9997]
[1718105945981,1.45495315,66873.0,66872.0,0.9997]
[1718105946380,1.41049348,66873.0,66872.0,0.9997]
[1718105947289,1.45494507,66873.0,66872.0,0.9997]
[1718105947511,1.41049348,66873.0,66872.0,0.9997]
[1718105947915,1.41052738,66873.0,66872.0,0.9997]
[1718105948774,1.46589089,66873.0,66872.0,0.9997]
[1718105949423,1.46586568,66873.0,66872.0,0.9997]
[1718105953317,1.46586985,66873.0,66872.0,0.9997]
[1718105954103,0.149583,66853.0,66845.0,0.6249]
[1718105954324,0.15912902,66851.0,66847.0,0.43295979]
[1718105954530,0.15386295,66850.0,66845.0,0.1531]
[1718105954782,0.30113773,66850.0,66845.0,0.1531]
[1718105956272,0.00954302,66848.0,66845.0,0.1541]
[1718105956479,0.00954302,66848.0,66845.0,0.001]
[1718105956480,0.149597,66846.0,66845.0,0.001]
[1718105956735,0.40761297,66846.0,66845.0,0.001]
[1718105956938,0.149604,66843.0,66842.0,0.01173125]
[1718105957153,0.29392393,66843.0,66842.0,0.01173125]
[1718105957371,0.30095669,66843.0,66842.0,0.01173125]
[1718105957581,0.41480136,66843.0,66842.0,0.01173125]
[1718105958761,0.41613635,66843.0,66842.0,0.01173125]
[1718105959189,0.41613635,66843.0,66841.0,0.00145981]
[1718105959395,0.36992593,66842.0,66841.0,0.00145981]
[1718105959814,0.51362482,66842.0,66841.0,0.00145981]
[1718105960034,0.66831479,66842.0,66841.0,0.00145981]
[1718105960662,0.64682941,66842.0,66841.0,0.00145981]
[1718105960873,0.66833877,66842.0,66841.0,0.00145981]
[1718105961122,0.96755177,66842.0,66841.0,0.00145981]
[1718105961328,0.96755177,66842.0,66841.0,0.00245981]
[1718105961541,0.96755543,66842.0,66841.0,0.00245981]
[1718105962197,0.66834243,66842.0,66841.0,0.00245981]
[1718105962423,0.57082941,66842.0,66841.0,0.00245981]
[1718105962628,0.41613944,66842.0,66841.0,0.00245981]
[1718105962856,0.41613944,66842.0,66841.0,0.00145981]
[1718105963284,0.41813944,66842.0,66841.0,0.00145981]
[1718105963502,0.12421351,66842.0,66841.0,0.00145981]
[1718105963735,0.01299092,66842.0,66841.0,0.00145981]
[1718105963950,0.01099092,66842.0,66841.0,0.00145981]
[1718105964208,0.01499092,66842.0,66841.0,0.00145981]
[1718105964625,0.00699092,66842.0,66841.0,0.00145981]
[1718105965066,0.149602,66844.0,66841.0,0.00145981]
[1718105965291,0.00691482,66842.0,66841.0,0.00145981]
[1718105965530,0.14431993,66843.0,66841.0,0.00145981]
[1718105965751,0.00691482,66842.0,66841.0,0.00145981]
[1718105966234,0.15652082,66842.0,66841.0,0.00245981]
[1718105966445,0.30084075,66842.0,66841.0,0.00245981]
[1718105967094,0.30084075,66842.0,66841.0,0.00145981]
[1718105967543,0.30084075,66842.0,66841.0,0.00245981]
[1718105967924,0.41047042,66842.0,66841.0,0.00145981]
[1718105969112,0.59914006,66842.0,66841.0,0.00145981]
[1718105970346,0.41047042,66842.0,66841.0,0.00245981]
[1718105970759,0.30084075,66842.0,66841.0,0.00145981]
[1718105971138,0.30084075,66842.0,66841.0,0.00245981]
[1718105971565,0.30084075,66842.0,66841.0,0.00145981]
[1718105971963,0.30084075,66842.0,66841.0,0.00245981]
[1718105972160,0.36069375,66842.0,66841.0,0.00245981]
[1718105973970,0.36069375,66842.0,66841.0,0.00145981]
[1718105974426,0.36069375,66842.0,66841.0,0.00245981]
[1718105974875,0.36069375,66842.0,66841.0,0.00145981]
[1718105975630,0.06676782,66842.0,66841.0,0.24495981]
[1718105976553,0.06676782,66842.0,66841.0,0.24395981]
[1718105976979,0.06676782,66842.0,66841.0,0.24495981]
[1718105978046,0.00691482,66842.0,66841.0,0.24495981]
[1718105978483,0.00673192,66842.0,66841.0,0.24495981]
[1718105978686,0.149601,66845.0,66841.0,0.24495981]
[1718105978887,0.00673192,66842.0,66841.0,0.24495981]
[1718105979129,0.05985,66843.0,66841.0,0.24495981]
[1718105979363,0.00673192,66842.0,66841.0,0.24495981]
[1718105979726,0.00673192,66842.0,66841.0,0.24395981]
[1718105980121,0.00673192,66842.0,66841.0,0.24495981]
[1718105980321,0.00673192,66842.0,66841.0,0.24595981]
[1718105981205,0.00673192,66842.0,66841.0,0.24495981]
[1718105981401,0.00673192,66842.0,66841.0,0.24395981]
[1718105981644,0.00673192,66842.0,66841.0,0.24495981]
[1718105982747,0.15633792,66842.0,66841.0,0.16175981]
[1718105982972,0.15633792,66842.0,66841.0,0.00245981]
[1718105983209,0.15633792,66842.0,66841.0,0.00145981]
[1718105983457,0.15633792,66842.0,66841.0,0.00121745]
[1718105983660,0.15633792,66842.0,66841.0,0.00321745]
[1718105988872,0.35193419,66842.0,66841.0,0.00321745]
[1718105989532,0.33043978,66842.0,66841.0,0.00321745]
[1718105989723,0.33043978,66842.0,66841.0,0.00221745]
[1718105990172,0.33043978,66842.0,66841.0,0.00321745]
[1718105990624,0.33043978,66842.0,66841.0,0.00221745]
[1718105991161,0.33043978,66842.0,66841.0,0.00321745]
[1718105991584,0.44451996,66842.0,66841.0,0.00321745]
[1718105991997,0.44422402,66842.0,66841.0,0.00321745]
[1718105992200,0.44873814,66842.0,66841.0,0.00321745]
[1718105992606,0.35621054,66842.0,66841.0,0.00321745]
[1718105993051,0.44141054,66842.0,66841.0,0.00321745]
[1718105994687,0.41985796,66842.0,66841.0,0.00321745]
[1718105994911,0.44140724,66842.0,66841.0,0.00321745]
[1718105995791,0.4416612,66842.0,66841.0,0.00321745]
[1718105996792,0.2068552,66842.0,66841.0,0.00321745]
[1718105997060,0.05985,66844.0,66842.0,0.1537]
[1718105998374,0.05985,66844.0,66842.0,0.1547]
[1718105999018,0.05985,66844.0,66843.0,0.0775]
[1718105999965,0.05985,66844.0,66843.0,0.2297]
[1718106001554,0.05985,66844.0,66843.0,0.379304]
[1718106001756,0.04454533,66854.0,66848.0,0.1616]
[1718106002236,0.04454533,66854.0,66849.0,0.07215996]
[1718106002447,0.04454533,66854.0,66850.0,0.2429]
[1718106003384,0.04554533,66854.0,66850.0,0.2429]
[1718106003584,0.04554533,66854.0,66851.0,0.1523]
[1718106003794,0.001,66854.0,66851.0,0.1523]
[1718106003989,0.0723916,66859.0,66851.0,0.1523]
[1718106004189,0.0723916,66859.0,66849.0,0.07215996]
[1718106004190,0.004,66854.0,66853.0,0.1518]
[1718106004398,0.008,66854.0,66853.0,0.1518]
[1718106004612,0.004,66854.0,66853.0,0.1518]
[1718106004800,0.0125566,66859.0,66853.0,0.1518]
[1718106005264,0.0175566,66859.0,66853.0,0.1518]
[1718106006439,0.005,66854.0,66853.0,0.1518]
[1718106006642,0.149588,66850.0,66849.0,0.0852]
[1718106006864,0.29390793,66850.0,66849.0,0.0852]
[1718106007090,0.149595,66847.0,66841.0,0.47301745]
[1718106007269,0.0852,66846.0,66841.0,0.47301745]
[1718106007447,0.149595,66847.0,66841.0,0.47301745]
[1718106007649,0.0852,66845.0,66842.0,0.07215996]
[1718106007853,0.149595,66847.0,66842.0,0.07215996]
[1718106009505,0.14431993,66846.0,66841.0,0.00121745]
[1718106009672,0.0764,66845.0,66841.0,0.00121745]
[1718106009881,0.14431993,66844.0,66842.0,0.07215996]
[1718106010302,0.149606,66843.0,66842.0,0.07215996]
[1718106010543,0.29392593,66843.0,66842.0,0.07215996]
[1718106012121,0.149591,66849.0,66842.0,0.23245996]
[1718106012327,0.14431993,66848.0,66843.0,0.0802]
[1718106012710,0.149591,66849.0,66843.0,0.0802]
[1718106012909,0.0125566,66853.0,66843.0,0.0802]
[1718106013111,0.0125566,66853.0,66852.0,0.07215996]
[1718106013325,0.41322435,66853.0,66842.0,0.07215996]
[1718106013524,0.32569172,66852.0,66849.0,0.07215996]
[1718106013875,0.25721614,66851.0,66849.0,0.07215996]
[1718106014100,0.32569172,66850.0,66849.0,0.07215996]
[1718106014306,0.18137179,66850.0,66849.0,0.07215996]
[1718106014512,0.18137179,66850.0,66849.0,0.31745996]
[1718106014719,0.0125566,66853.0,66849.0,0.07215996]
[1718106014940,0.149596,66847.0,66842.0,0.07215996]
[1718106015110,0.25755579,66846.0,66842.0,0.07215996]
[1718106015315,0.18137179,66845.0,66842.0,0.07215996]
[1718106015515,0.149596,66847.0,66842.0,0.07215996]
[1718106016563,0.14431993,66846.0,66842.0,0.07215996]
[1718106016769,0.149604,66843.0,66842.0,0.07215996]
[1718106020264,0.19429821,66843.0,66842.0,0.07215996]
[1718106020628,0.149604,66843.0,66842.0,0.07215996]
[1718106023966,0.04469421,66845.0,66842.0,0.07215996]
[1718106024380,0.04469421,66845.0,66843.0,0.2402]
[1718106024608,0.00502264,66852.0,66843.0,0.2402]
[1718106024609,0.04469421,66846.0,66843.0,0.2402]
[1718106025030,0.04469421,66847.0,66844.0,0.1647]
[1718106025891,0.00502264,66852.0,66844.0,0.1647]
[1718106025892,0.04469421,66850.0,66844.0,0.1647]
[1718106026101,0.04469421,66850.0,66849.0,0.23165996]
[1718106026323,0.04469421,66856.0,66850.0,0.0831]
[1718106026539,0.04469421,66857.0,66850.0,0.0831]
[1718106026763,0.17272778,66860.0,66850.0,0.0831]
[1718106026764,0.04469421,66858.0,66850.0,0.0831]
[1718106027044,0.04469421,66857.0,66856.0,0.07215996]
[1718106027262,0.15458864,66860.0,66850.0,0.0831]
[1718106027263,0.04469421,66858.0,66850.0,0.0831]
[1718106027486,0.04469421,66857.0,66850.0,0.0831]
[1718106027705,0.04469421,66856.0,66850.0,0.0831]
[1718106028357,0.04469421,66857.0,66850.0,0.0831]
[1718106029258,0.04469421,66858.0,66851.0,0.1534]
[1718106029565,0.149568,66859.0,66851.0,0.1534]
[1718106029799,0.00502264,66860.0,66857.0,0.0805]
[1718106030021,0.00502264,66860.0,66858.0,0.1648]
[1718106031574,0.01467023,66859.0,66858.0,0.1648]
[1718106032031,0.01467023,66859.0,66858.0,0.30911993]
[1718106032259,0.01467023,66859.0,66858.0,0.75408993]
[1718106032487,0.006,66860.0,66859.0,0.2416]
[1718106032942,0.0185205,66860.0,66859.0,0.2416]
[1718106033154,0.149561,66863.0,66859.0,0.2416]
[1718106033385,0.0125205,66860.0,66859.0,0.2416]
[1718106033598,0.149553,66866.0,66859.0,0.2416]
[1718106034017,0.0125205,66865.0,66859.0,0.2416]
[1718106035054,0.0125205,66865.0,66863.0,0.07215996]
[1718106035480,0.0125205,66864.0,66859.0,0.2416]
[1718106035709,0.00954302,66869.0,66861.0,0.07215996]
[1718106035923,0.00954302,66869.0,66863.0,0.0826]
[1718106036142,0.059823,66873.0,66863.0,0.0826]
[1718106036365,0.059823,66873.0,66864.0,0.1624]
[1718106036793,0.000946,66875.0,66864.0,0.1624]
[1718106039121,0.000946,66875.0,66865.0,0.0752]
[1718106039325,0.000946,66875.0,66866.0,0.156]
[1718106042108,0.15018304,66875.0,66866.0,0.156]
[1718106042323,0.01279616,66874.0,66866.0,0.156]
[1718106043380,0.01279616,66874.0,66857.0,0.01432029]
[1718106043381,0.14431993,66873.0,66863.0,0.159]
[1718106043584,0.149551,66867.0,66863.0,0.159]
[1718106044040,0.01279616,66866.0,66863.0,0.159]
[1718106044242,0.01279616,66866.0,66860.0,0.2398]
[1718106044686,0.149551,66867.0,66860.0,0.2398]
[1718106044933,0.14431993,66873.0,66860.0,0.2398]
[1718106045153,0.4466,66865.0,66852.0,0.1528]
[1718106045397,0.14431993,66864.0,66852.0,0.1528]
[1718106045618,0.149572,66858.0,66852.0,0.1528]
[1718106045842,0.15707317,66864.0,66850.0,0.0823]
[1718106046082,0.149575,66856.0,66850.0,0.0823]
[1718106046520,0.01267852,66855.0,66850.0,0.0823]
[1718106049292,0.01267852,66855.0,66851.0,0.07215996]
[1718106050641,0.149598,66846.0,66842.0,0.00086]
[1718106050874,0.22411993,66854.0,66842.0,0.00086]
[1718106050875,0.149604,66843.0,66842.0,0.00086]
[1718106051112,0.16203854,66843.0,66842.0,0.00086]
[1718106051244,0.39443854,66843.0,66842.0,0.00086]
[1718106054654,0.23943854,66843.0,66842.0,0.00086]
[1718106060429,0.01243454,66843.0,66842.0,0.16736]
[1718106060928,0.16184374,66854.0,66842.0,0.16736]
[1718106061160,0.22959876,66853.0,66842.0,0.16736]
[1718106061378,0.14431993,66852.0,66842.0,0.16736]
[1718106061930,0.01218909,66851.0,66842.0,0.16736]
[1718106062135,0.37301993,66850.0,66842.0,0.00086]
[1718106062558,0.149604,66843.0,66842.0,0.00086]
[1718106062805,0.37052393,66843.0,66842.0,0.00086]
[1718106063020,0.38271302,66843.0,66842.0,0.00086]
[1718106063384,0.83432102,66843.0,66842.0,0.00086]
[1718106063581,1.04387707,66843.0,66842.0,0.00086]
[1718106063732,1.34308507,66843.0,66842.0,0.00086]
[1718106063929,1.60991022,66843.0,66842.0,0.00086]
[1718106064356,1.31244306,66843.0,66842.0,0.00086]
[1718106064558,1.2008344,66843.0,66842.0,0.00086]
[1718106065449,1.2008344,66843.0,66842.0,0.00186]
[1718106065450,1.2148344,66843.0,66842.0,0.00186]
[1718106065658,1.30381029,66843.0,66842.0,0.00186]
[1718106065874,1.14364014,66843.0,66842.0,0.00086]
[1718106066079,1.30258036,66843.0,66842.0,0.00086]
[1718106066526,1.15764014,66843.0,66842.0,0.00086]
[1718106066794,1.21372452,66843.0,66842.0,0.00086]
[1718106067023,0.748032,66842.0,66841.0,0.00121745]
[1718106067255,0.748032,66842.0,66829.0,0.00086]
[1718106067256,0.239933,66830.0,66829.0,0.00086]
[1718106067484,0.77905458,66830.0,66829.0,0.00086]
[1718106067921,0.79116264,66830.0,66829.0,0.00086]
[1718106068970,0.80216264,66830.0,66829.0,0.00086]
[1718106069175,0.80216264,66830.0,66829.0,0.00186]
[1718106069390,0.81316264,66830.0,66829.0,0.00186]
[1718106069924,0.63126099,66830.0,66829.0,0.00186]
[1718106070140,0.79924763,66830.0,66829.0,0.00186]
[1718106070854,0.63126099,66830.0,66829.0,0.00186]
[1718106071139,0.34849725,66830.0,66829.0,0.00186]
[1718106071348,0.17842799,66830.0,66829.0,0.00186]
[1718106073157,0.32806099,66830.0,66829.0,0.00186]
[1718106073362,0.66145701,66830.0,66829.0,0.00186]
[1718106074311,0.74255701,66830.0,66829.0,0.00186]
[1718106074514,0.75511361,66830.0,66829.0,0.00186]
[1718106077579,0.81498561,66830.0,66829.0,0.00186]
[1718106078590,0.56868561,66830.0,66829.0,0.00186]
[1718106078792,0.41905261,66830.0,66829.0,0.00186]
[1718106079952,0.43670783,66830.0,66829.0,0.00186]
[1718106080110,0.58634083,66830.0,66829.0,0.00186]
[1718106080308,0.66734083,66830.0,66829.0,0.00186]
[1718106080895,0.66839229,66830.0,66829.0,0.00186]
[1718106081747,0.66398414,66830.0,66829.0,0.00186]
[1718106082166,0.66395306,66830.0,66829.0,0.00186]
[1718106083174,0.66287404,66830.0,66829.0,0.00186]